bitfinex/quotes_ETHUSD_20250210
["timestamp","ask_amount","ask_price","bid_price","bid_amount"]
[1739228518418,3.75359,2664.2,2664.0,0.7944]
[1739228518716,3.75423,2663.7,2663.3,6.1844]
[1739228518958,3.75432,2663.6,2663.3,0.7944]
[1739228519513,3.75423,2663.7,2663.3,0.7944]
[1739228519914,3.75396,2663.9,2662.9,5.39]
[1739228519915,3.75465,2663.4,2662.9,6.1844]
[1739228520574,3.75465,2663.4,2662.9,9.93967]
[1739228520733,4.55988,2663.6,2662.6,0.7944]
[1739228520734,3.75539,2662.9,2662.6,0.7944]
[1739228520925,0.8055,2663.6,2662.2,0.7944]
[1739228520926,3.75583,2662.6,2662.2,0.7944]
[1739228521125,3.75547,2662.8,2662.2,4.55066]
[1739228521325,3.75547,2662.8,2662.2,8.30686]
[1739228521553,3.75563,2662.7,2662.2,0.7944]
[1739228521736,3.75627,2662.3,2661.9,0.7944]
[1739228522066,0.8055,2663.0,2662.3,3.75611]
[1739228522270,0.8055,2663.0,2662.5,3.75583]
[1739228522561,4.56029,2663.3,2662.6,3.75567]
[1739228522769,3.75491,2663.2,2662.5,4.55023]
[1739228523057,0.8055,2663.3,2662.1,4.55071]
[1739228523262,3.75568,2662.7,2662.1,4.55071]
[1739228523560,3.75612,2662.4,2661.8,3.75676]
[1739228523915,3.75616,2662.3,2661.8,3.75676]
[1739228524118,3.75616,2662.3,2661.5,0.7944]
[1739228524119,3.75669,2662.0,2661.5,0.7944]
[1739228525271,3.75671,2661.9,2661.5,0.7944]
[1739228525750,0.8055,2662.4,2661.5,0.7944]
[1739228525951,3.75667,2662.0,2661.5,0.7944]
[1739228526459,3.75634,2662.2,2661.5,0.7944]
[1739228526662,3.0,2662.5,2661.9,3.7566]
[1739228526860,3.75581,2662.6,2661.9,3.7566]
[1739228527049,3.75582,2662.6,2661.9,7.51322]
[1739228527246,3.75582,2662.6,2662.0,3.75657]
[1739228527681,3.75582,2662.6,2661.9,3.7566]
[1739228527852,3.75645,2662.1,2661.5,0.7944]
[1739228528161,0.283,2662.7,2661.5,0.83196804]
[1739228528375,3.75596,2662.5,2661.8,3.75674]
[1739228528672,3.75589,2662.5,2661.8,3.75674]
[1739228529537,7.51215,2662.4,2661.8,3.75674]
[1739228529864,3.75639,2662.2,2661.6,3.75708]
[1739228530064,7.51304,2662.1,2661.5,0.7944]
[1739228530368,3.75651,2662.1,2661.5,0.7944]
[1739228530667,3.75651,2662.1,2661.5,4.55163]
[1739228531172,5.35,2662.9,2662.4,3.756]
[1739228531323,0.788,2663.1,2662.1,0.7513]
[1739228531324,3.75544,2662.8,2662.2,3.75623]
[1739228531537,3.75524,2663.0,2662.3,3.75614]
[1739228532689,3.75544,2662.8,2662.3,3.75614]
[1739228533348,3.75544,2662.8,2662.2,3.75626]
[1739228533548,3.75544,2662.8,2662.2,3.75629]
[1739228534290,3.75544,2662.8,2662.3,3.75611]
[1739228534798,3.75523,2663.0,2662.3,3.75605]
[1739228534974,3.75495,2663.2,2662.7,4.50683]
[1739228535178,3.7541,2663.8,2663.1,3.75492]
[1739228535179,4.54226,2663.7,2663.1,3.75492]
[1739228535401,0.788,2664.2,2663.2,0.03754794]
[1739228535718,0.788,2664.5,2663.9,3.75379]
[1739228536017,3.75329,2664.4,2663.8,3.75394]
[1739228536188,3.75334,2664.3,2663.7,0.7513]
[1739228536510,3.75352,2664.2,2663.7,0.7513]
[1739228537008,3.75465,2663.4,2663.0,0.7513]
[1739228537415,3.75441,2663.6,2663.0,0.7513]
[1739228537768,4.54209,2663.8,2663.0,4.50637]
[1739228537965,3.75419,2663.7,2663.0,4.50637]
[1739228538397,3.75438,2663.6,2663.0,4.50637]
[1739228539498,3.75406,2663.8,2663.0,4.50635]
[1739228539699,3.75372,2664.1,2663.4,3.75448]
[1739228540570,3.75372,2664.1,2663.3,3.75474]
[1739228540774,0.788,2664.0,2663.1,3.755]
[1739228541015,0.788,2664.0,2662.3,0.76649471]
[1739228541016,3.75502,2663.1,2662.5,0.7513]
[1739228541182,3.75502,2663.1,2662.5,4.50711]
[1739228541386,3.75502,2663.1,2662.5,0.7513]
[1739228541587,3.75502,2663.1,2662.6,3.75572]
[1739228541782,7.51015,2663.1,2662.5,0.7513]
[1739228542077,3.75548,2662.8,2662.2,0.7718]
[1739228542277,3.75548,2662.8,2662.3,3.75612]
[1739228542501,3.75521,2663.0,2662.3,3.75612]
[1739228542703,0.788,2663.4,2662.3,0.03755763]
[1739228542918,0.7913,2663.8,2663.2,4.52659]
[1739228543215,3.75397,2663.9,2663.2,4.52659]
[1739228543427,3.75397,2663.9,2663.2,8.28138]
[1739228543578,3.75397,2663.9,2663.3,3.75472]
[1739228543773,3.75381,2664.0,2663.4,3.75459]
[1739228544191,3.75381,2664.0,2663.4,3.75449]
[1739228544529,3.75426,2663.7,2663.2,0.7718]
[1739228544733,3.75439,2663.6,2663.2,0.7718]
[1739228545256,3.75426,2663.7,2663.2,0.7718]
[1739228545535,4.54503,2664.1,2663.2,0.7718]
[1739228545688,3.75341,2664.3,2663.6,3.75419]
[1739228545886,3.75362,2664.1,2663.6,3.75419]
[1739228546082,3.75362,2664.1,2663.4,3.75456]
[1739228546328,3.0,2664.2,2663.6,3.75417]
[1739228546535,3.75365,2664.1,2663.6,3.75417]
[1739228546687,0.7913,2664.3,2663.2,0.7718]
[1739228547032,3.75479,2663.3,2662.9,0.7718]
[1739228547984,0.7913,2663.6,2662.9,0.7718]
[1739228547985,3.75512,2663.1,2662.9,0.7718]
[1739228548189,3.75481,2663.3,2662.6,4.52752]
[1739228548421,3.75481,2663.3,2662.8,3.75543]
[1739228549536,3.75355,2664.2,2663.6,3.75425]
[1739228549841,3.75355,2664.2,2663.6,0.7718]
[1739228549999,3.75375,2664.0,2663.6,0.7718]
[1739228550661,0.7913,2664.3,2663.3,0.7718]
[1739228550993,3.7545,2663.5,2662.9,0.7718]
[1739228551199,3.75475,2663.3,2662.9,0.7718]
[1739228551888,0.7913,2663.7,2662.6,0.7718]
[1739228551889,3.75533,2662.9,2662.6,0.7718]
[1739228552597,3.7551,2663.1,2662.6,0.7718]
[1739228552749,3.75483,2663.3,2662.6,0.7718]
[1739228552950,3.75503,2663.1,2662.6,4.5275]
[1739228554655,3.75503,2663.1,2662.6,0.7718]
[1739228555167,3.7913,2663.4,2662.3,6.8610573]
[1739228555367,0.5575,2663.3,2662.3,3.1049973]
[1739228555665,3.75593,2662.5,2662.3,2.3331973]
[1739228558298,3.756,2662.4,2662.3,2.3331973]
[1739228558813,3.7913,2662.6,2661.3,0.7734]
[1739228558953,3.75717,2661.6,2661.3,0.7734]
[1739228559893,3.75752,2661.4,2660.8,3.75822]
[1739228560203,3.75764,2661.3,2660.7,0.7734]
[1739228560362,3.75782,2661.2,2660.7,0.7734]
[1739228560768,0.8255,2661.2,2660.7,0.7734]
[1739228560980,3.75811,2661.0,2660.4,0.7734]
[1739228561292,3.75811,2661.0,2660.4,4.5322]
[1739228561454,3.75756,2661.3,2660.8,3.75823]
[1739228561656,9.93237,2661.8,2660.9,0.7734]
[1739228561951,3.75701,2661.7,2661.1,3.75772]
[1739228562175,3.75723,2661.6,2661.0,3.75794]
[1739228562384,3.7575,2661.4,2660.9,0.7734]
[1739228562579,3.75723,2661.6,2660.9,0.7734]
[1739228562855,3.75723,2661.6,2660.9,4.52996486]
[1739228563205,3.75653,2662.1,2661.5,3.75714]
[1739228563368,0.8255,2662.8,2662.0,3.75644]
[1739228563567,3.75587,2662.5,2661.8,3.75673]
[1739228563794,7.51184,2662.5,2661.8,3.75673]
[1739228563988,3.75587,2662.5,2661.8,7.51348]
[1739228564303,3.0,2662.6,2661.8,3.75673]
[1739228564503,3.0,2662.6,2662.0,3.75644]
[1739228564674,6.75576,2662.6,2662.0,3.75644]
[1739228564857,3.0,2662.6,2662.0,3.75644]
[1739228565379,3.0,2662.6,2662.1,3.75639]
[1739228565975,4.58053,2663.1,2662.5,3.75586]
[1739228566186,3.7553,2662.9,2662.4,3.756]
[1739228566395,3.7548,2663.3,2662.5,0.7734]
[1739228566697,3.75468,2663.4,2662.7,3.75548]
[1739228566901,3.75468,2663.4,2662.8,3.75542]
[1739228567396,3.75449,2663.5,2662.9,3.75529]
[1739228567552,3.75419,2663.7,2663.0,4.52844]
[1739228568058,0.8405,2663.9,2662.6,0.7734]
[1739228568282,3.75513,2663.1,2662.6,0.7734]
[1739228568485,4.58024,2663.3,2662.6,4.52909]
[1739228569122,3.75488,2663.2,2662.6,4.52909]
[1739228569330,5.35,2663.6,2662.6,0.7734]
[1739228569494,5.35,2663.6,2663.1,3.7549]
[1739228569694,3.75405,2663.8,2663.2,0.7734]
[1739228569695,3.0,2663.7,2663.2,0.7734]
[1739228569996,3.0,2663.7,2663.2,4.52822]
[1739228570583,3.0,2663.9,2663.2,0.7734]
[1739228570785,6.75393,2663.9,2663.3,3.75461]
[1739228571081,6.75393,2663.9,2663.2,0.7734]
[1739228571082,3.75455,2663.5,2663.2,0.7734]
[1739228571683,3.75502,2663.1,2662.8,0.7734]
[1739228573325,3.75502,2663.1,2662.5,4.5811]
[1739228573616,3.75516,2663.0,2662.5,0.8253]
[1739228573781,3.75572,2662.6,2662.5,0.8253]
[1739228573986,3.75572,2662.6,2662.1,0.8253]
[1739228574725,3.75561,2662.7,2662.1,4.58163]
[1739228575784,4.51287,2662.8,2662.2,3.75628]
[1739228575984,8.26845,2662.8,2662.2,3.75628]
[1739228576211,3.75558,2662.7,2662.2,3.75628]
[1739228576631,3.75596,2662.5,2662.1,0.8253]
[1739228576794,3.75611,2662.4,2662.1,0.8253]
[1739228577733,3.75596,2662.5,2662.1,0.8253]
[1739228578094,3.75603,2662.4,2662.1,0.8253]
[1739228578636,0.7574,2662.8,2661.8,0.8253]
[1739228578637,3.7574,2662.8,2661.8,0.8253]
[1739228578789,3.75622,2662.3,2661.8,0.8253]
[1739228579432,3.75566,2662.7,2661.8,0.8253]
[1739228579592,3.75517,2663.0,2662.5,3.75574]
[1739228579797,0.287,2663.3,2662.5,0.8253]
[1739228580035,3.75552,2662.8,2662.5,0.8253]
[1739228580537,3.75552,2662.8,2662.1,3.75634]
[1739228580835,3.75552,2662.8,2661.9,3.75665]
[1739228580836,0.7574,2663.4,2662.4,3.75587]
[1739228581021,7.50996,2663.2,2662.7,0.8253]
[1739228581347,3.75497,2663.2,2662.7,0.8253]
[1739228581730,4.51207,2663.4,2662.7,0.8253]
[1739228581925,3.75445,2663.5,2662.9,3.7552]
[1739228582123,3.75445,2663.5,2663.0,0.8253]
[1739228582810,3.7544,2663.6,2662.2,0.015]
[1739228582811,3.75476,2663.3,2662.7,0.8253]
[1739228583009,3.75476,2663.3,2662.7,4.58076]
[1739228583010,3.75489,2663.2,2662.7,4.58076]
[1739228583208,0.7574,2663.6,2662.7,0.8253]
[1739228583433,3.75526,2663.0,2662.7,0.8253]
[1739228583741,3.75535,2662.9,2662.7,0.8253]
[1739228584039,3.75526,2663.0,2662.4,0.8253]
[1739228584040,3.7553,2663.0,2662.4,0.8253]
[1739228584838,3.0,2663.5,2662.4,0.86285762]
[1739228585041,3.75475,2663.3,2662.8,0.8253]
[1739228586008,3.75498,2663.2,2662.8,0.8253]
[1739228586423,3.75494,2663.2,2662.8,0.8253]
[1739228586927,3.75508,2663.1,2662.5,4.58115]
[1739228587432,3.75564,2662.7,2662.2,4.55536]
[1739228587620,3.75564,2662.7,2662.2,0.7992]
[1739228587876,3.75604,2662.4,2661.9,0.7992]
[1739228588410,5.35,2662.9,2661.9,0.7992]
[1739228588411,3.75617,2662.3,2661.9,0.7992]
[1739228588615,3.75632,2662.2,2661.6,4.50842]
[1739228588810,3.75632,2662.2,2661.7,3.7569]
[1739228589029,3.75632,2662.2,2661.6,4.50842]
[1739228589634,3.75608,2662.4,2661.8,3.75677]
[1739228589840,3.75608,2662.4,2661.7,3.75686]
[1739228590004,3.75608,2662.4,2661.9,3.75667]
[1739228590201,3.75608,2662.4,2661.7,3.75686]
[1739228590606,3.75632,2662.2,2661.7,3.75686]
[1739228591149,3.75608,2662.4,2661.7,3.75686]
[1739228591309,7.51217,2662.4,2661.8,3.75676]
[1739228591670,3.75608,2662.4,2661.8,3.75676]
[1739228592326,3.75615,2662.3,2661.8,3.75676]
[1739228592655,3.75685,2661.8,2661.6,0.7514]
[1739228592816,3.75685,2661.8,2661.2,4.50907]
[1739228593012,3.75663,2662.0,2661.3,3.75751]
[1739228593314,9.10591,2662.5,2661.7,4.50836]
[1739228593315,3.75607,2662.4,2661.7,4.50836]
[1739228593658,3.75607,2662.4,2661.9,3.7567]
[1739228593813,3.75627,2662.3,2661.7,0.7514]
[1739228594016,3.75627,2662.3,2661.7,4.50827]
[1739228594244,3.75623,2662.3,2661.7,4.50827]
[1739228594428,3.7563,2662.2,2661.7,4.50827]
[1739228594640,3.75607,2662.4,2661.7,4.50827]
[1739228595389,3.75607,2662.4,2661.8,3.75677]
[1739228595568,3.75607,2662.4,2661.9,3.7567]
[1739228595714,3.75551,2662.8,2662.1,3.75643]
[1739228595911,7.51107,2662.8,2662.1,7.51273]
[1739228596154,7.51107,2662.8,2662.2,3.75627]
[1739228596753,7.51109,2662.8,2662.2,3.75618]
[1739228596951,7.51109,2662.8,2662.1,3.75631]
[1739228596952,3.75571,2662.7,2662.1,3.75631]
[1739228597115,3.75573,2662.6,2662.1,3.75631]
[1739228597320,7.51154,2662.6,2662.1,3.75631]
[1739228597556,3.75626,2662.3,2661.7,3.75692]
[1739228597726,8.3357,2662.5,2661.7,4.50832]
[1739228597931,8.3357,2662.5,2661.9,3.75667]
[1739228598131,0.8238,2662.5,2661.9,3.75668]
[1739228598335,3.7561,2662.4,2661.9,3.75668]
[1739228598521,3.7561,2662.4,2661.8,3.75683]
[1739228599363,3.7561,2662.4,2661.9,3.7567]
[1739228600975,3.75617,2662.3,2661.7,4.50832]
[1739228601267,3.75658,2662.0,2661.4,6.1414]
[1739228601483,3.75655,2662.1,2661.4,0.7514]
[1739228601628,3.75654,2662.1,2661.4,0.7514]
[1739228601828,3.75695,2661.8,2661.4,0.7514]
[1739228602038,3.0,2661.9,2660.9,0.7783]
[1739228602239,3.75755,2661.4,2660.9,0.7783]
[1739228602529,0.7826,2661.6,2660.9,0.7783]
[1739228602530,3.75766,2661.3,2660.9,0.7783]
[1739228602905,0.7826,2661.6,2660.3,2.34245139]
[1739228602906,3.75802,2661.0,2660.6,0.7783]
[1739228603771,3.75827,2660.8,2660.6,0.7783]
[1739228603942,3.75827,2660.8,2660.3,0.7783]
[1739228604125,3.0,2660.8,2660.0,0.7783]
[1739228604467,3.75871,2660.5,2660.0,4.53768]
[1739228604669,3.75844,2660.7,2660.0,4.53768]
[1739228604971,3.75878,2660.5,2660.0,0.7783]
[1739228605543,3.75825,2660.9,2660.2,3.75901]
[1739228605751,3.75841,2660.7,2660.1,3.75925]
[1739228606258,3.0,2660.6,2660.2,3.79666886]
[1739228606464,3.75825,2660.9,2660.2,3.75908]
[1739228606705,3.75825,2660.9,2660.4,3.75883]
[1739228607202,3.75787,2661.1,2660.4,3.75883]
[1739228607405,3.0,2661.0,2660.6,3.75852]
[1739228607716,3.0,2661.0,2660.5,0.7783]
[1739228607860,3.75812,2660.9,2660.5,0.7783]
[1739228608163,7.51696,2660.7,2660.0,3.75935]
[1739228608361,3.75894,2660.4,2659.9,0.7783]
[1739228608591,3.75894,2660.4,2659.9,4.53782]
[1739228608760,3.75894,2660.4,2659.9,0.7783]
[1739228609676,4.54154,2660.4,2659.8,3.75964]
[1739228610432,0.7826,2660.4,2659.8,3.75964]
[1739228610598,3.75872,2660.5,2659.8,3.75964]
[1739228610803,4.5411,2660.7,2660.1,3.75916]
[1739228611098,4.5411,2660.7,2660.1,3.75914]
[1739228611099,7.54102,2660.7,2660.1,3.75914]
[1739228611265,3.7826,2660.7,2660.1,3.75914]
[1739228611466,3.75805,2661.0,2660.3,3.75889]
[1739228611688,3.75795,2661.1,2660.5,3.75865]
[1739228612005,6.75795,2661.1,2660.5,3.75865]
[1739228612201,3.758,2661.0,2660.3,3.75892]
[1739228612405,3.0,2661.1,2660.2,0.7783]
[1739228612566,3.75856,2660.6,2659.9,4.53771]
[1739228612768,3.75905,2660.3,2659.6,3.75982]
[1739228613118,3.75913,2660.2,2659.7,3.75981]
[1739228613399,0.55,2660.3,2659.7,3.75981]
[1739228613605,4.30899,2660.3,2659.7,3.75981]
[1739228613765,0.7826,2660.4,2659.9,0.7783]
[1739228613965,11.29956,2660.7,2660.0,3.75926]
[1739228614209,11.29956,2660.7,2660.0,7.51855]
[1739228614419,0.55,2660.6,2660.0,7.51855]
[1739228614575,4.30855,2660.6,2660.0,3.75926]
[1739228614773,3.75894,2660.4,2659.9,0.7783]
[1739228615012,0.7826,2660.1,2659.4,3.7602]
[1739228615214,3.75943,2660.0,2659.4,3.7602]
[1739228615515,3.75943,2660.0,2659.5,3.76007]
[1739228615818,6.75914,2660.2,2659.6,3.75991]
[1739228616004,3.75914,2660.2,2659.6,3.75991]
[1739228616577,3.75939,2660.0,2659.3,0.7783]
[1739228616915,3.76005,2659.6,2659.1,0.5]
[1739228617074,3.76023,2659.5,2659.1,0.5]
[1739228617271,3.76027,2659.4,2659.1,0.5]
[1739228617502,3.76012,2659.5,2659.1,0.5]
[1739228617716,3.75996,2659.6,2659.1,0.5]
[1739228618026,3.76035,2659.4,2659.1,0.5]
[1739228618378,4.54308,2659.3,2659.1,0.5]
[1739228618919,0.7826,2659.3,2659.1,0.5]
[1739228619273,7.52035,2659.5,2659.1,0.5]
[1739228619274,3.0,2659.5,2659.1,0.5]
[1739228619623,5.09247,2659.7,2659.1,4.26066]
[1739228619976,5.09247,2659.7,2659.1,0.45]
[1739228620177,4.54312,2659.2,2659.1,0.45]
[1739228620489,8.09312,2659.2,2659.1,0.45]
[1739228621076,0.7826,2659.2,2659.1,0.45]
[1739228621300,3.7604,2659.3,2659.1,0.45]
[1739228621527,0.7826,2659.8,2659.1,0.45]
[1739228621683,0.7826,2660.2,2659.7,3.75974]
[1739228621883,0.7826,2660.2,2659.6,0.7783]
[1739228622217,0.7826,2660.2,2659.1,0.45]
[1739228622218,3.0,2660.0,2659.3,4.53863]
[1739228622422,3.75958,2659.9,2659.3,4.5386]
[1739228622624,3.0,2660.0,2659.3,4.5386]
[1739228622828,3.75906,2660.3,2659.7,3.75976]
[1739228623127,3.0,2660.2,2659.5,3.75999]
[1739228623283,0.55,2660.3,2659.3,0.7783]
[1739228623483,3.75971,2659.8,2659.3,0.7783]
[1739228623688,3.7602,2659.5,2659.1,0.45]
[1739228623904,3.75987,2659.7,2659.1,0.45]
[1739228624103,0.55,2659.9,2659.1,0.45]
[1739228624302,3.75994,2659.7,2659.1,0.45]
[1739228624515,4.54207,2660.0,2659.4,3.76015]
[1739228624727,3.7589,2660.4,2659.8,3.75958]
[1739228625014,3.75898,2660.3,2659.9,0.7783]
[1739228625459,3.7589,2660.4,2659.9,0.7783]
[1739228625729,3.75872,2660.5,2659.9,4.53777]
[1739228625928,3.75887,2660.4,2659.9,0.7783]
[1739228626129,0.7826,2660.6,2659.6,0.7783]
[1739228626130,3.75942,2660.0,2659.6,0.7783]
[1739228626287,3.75955,2659.9,2659.3,4.5386]
[1739228626712,7.51787,2660.4,2659.7,3.75974]
[1739228627026,4.3326,2660.1,2659.3,0.7783]
[1739228627229,3.75971,2659.8,2659.3,0.7783]
[1739228627582,3.76024,2659.5,2659.1,0.45]
[1739228627827,3.76044,2659.3,2659.1,0.45]
[1739228628032,3.76052,2659.2,2659.1,0.45]
[1739228628187,3.76044,2659.3,2659.1,0.45]
[1739228628617,3.76052,2659.2,2659.1,0.45]
[1739228628822,3.76044,2659.3,2659.1,0.45]
[1739228629536,3.76052,2659.2,2659.1,0.45]
[1739228629733,3.55,2659.4,2659.1,0.45]
[1739228630032,3.76039,2659.3,2659.1,0.45]
[1739228630238,3.76052,2659.2,2659.1,0.45]
[1739228630415,4.31052,2659.2,2659.1,0.45]
[1739228630810,7.31052,2659.2,2659.1,0.45]
[1739228631138,7.31052,2659.2,2658.0,0.7783]
[1739228631139,3.76208,2658.1,2658.0,0.7783]
[1739228631303,3.76109,2658.8,2658.0,0.7783]
[1739228631304,3.76173,2658.4,2658.0,0.7783]
[1739228632459,0.7826,2658.7,2658.1,3.76195]
[1739228632595,3.76099,2658.9,2658.2,3.7618]
[1739228632797,3.0,2658.8,2658.2,3.7618]
[1739228632998,3.0,2658.9,2658.3,3.76171]
[1739228633338,3.76095,2658.9,2658.0,0.7783]
[1739228633503,3.76095,2658.9,2658.1,3.76196]
[1739228633834,3.76126,2658.7,2658.1,3.76196]
[1739228634037,0.8219,2658.5,2657.9,0.96297025]
[1739228634189,3.55,2658.9,2658.0,3.76211]
[1739228634190,0.55,2658.6,2658.0,3.76211]
[1739228634536,7.5829,2658.9,2658.2,3.76183]
[1739228634745,0.8219,2659.2,2657.9,0.16017025]
[1739228634890,0.8219,2659.9,2659.1,3.76058]
[1739228635096,0.8219,2659.9,2659.3,3.76032]
[1739228635297,0.8219,2659.9,2659.6,3.75983]
[1739228635547,0.8219,2659.9,2659.4,3.76017]
[1739228635705,3.75991,2659.7,2659.1,3.76066]
[1739228635910,4.58146,2659.9,2658.9,0.8028]
[1739228636104,3.76,2659.6,2658.9,4.56362]
[1739228636306,3.76051,2659.3,2658.9,0.8028]
[1739228636541,3.76017,2659.5,2658.9,0.8028]
[1739228636751,3.76039,2659.3,2658.9,0.8028]
[1739228636966,7.52038,2659.5,2658.9,0.8028]
[1739228637127,3.76017,2659.5,2658.9,4.56372]
[1739228637336,3.0,2659.9,2659.0,0.8028]
[1739228637656,1.77943348,2660.0,2659.6,3.75986]
[1739228638425,1.77943348,2660.0,2659.4,3.76017]
[1739228638426,1.77943348,2660.0,2659.8,0.8028]
[1739228638751,1.77943348,2660.0,2659.9,3.75953]
[1739228638960,1.77943348,2660.0,2659.8,4.56237]
[1739228639137,1.77943348,2660.0,2659.4,0.8028]
[1739228639347,3.75992,2659.7,2659.4,0.8028]
[1739228639560,3.75971,2659.8,2659.4,0.8028]
[1739228639761,3.0,2659.8,2659.0,3.76071]
[1739228640053,3.75996,2659.6,2659.0,4.56351]
[1739228640253,3.75996,2659.6,2659.0,0.8028]
[1739228640454,3.76021,2659.5,2659.0,0.8028]
[1739228640655,0.55,2659.5,2658.6,3.76132]
[1739228640953,3.0,2659.5,2658.7,0.03761124]
[1739228641118,6.76012,2659.5,2658.8,3.76096]
[1739228641318,6.76012,2659.5,2658.8,7.52192]
[1739228641560,6.76012,2659.5,2658.8,3.76096]
[1739228641758,3.75993,2659.7,2659.0,3.76077]
[1739228642055,3.7589,2660.4,2659.2,0.8028]
[1739228642256,0.8219,2660.5,2659.4,3.76014]
[1739228642461,3.75921,2660.2,2659.5,3.76008]
[1739228642761,6.75852,2660.7,2659.9,4.56233]
[1739228642915,6.7587,2660.5,2659.9,4.56233]
[1739228643120,3.75901,2660.3,2659.9,0.8028]
[1739228643736,3.75914,2660.2,2659.6,3.75989]
[1739228643912,3.75914,2660.2,2659.5,4.56284]
[1739228644120,3.75993,2659.7,2659.2,0.8028]
[1739228644351,3.75953,2659.9,2659.2,0.8028]
[1739228644649,0.8219,2660.4,2659.3,0.03760165]
[1739228644856,0.8219,2660.4,2659.5,3.7601]
[1739228645181,3.75906,2660.3,2659.5,3.7601]
[1739228645803,3.75921,2660.2,2659.6,3.75994]
[1739228645968,3.75906,2660.3,2659.7,3.75978]
[1739228646302,7.51814,2660.3,2659.7,3.75978]
[1739228646455,3.75906,2660.3,2659.7,3.75978]
[1739228646657,3.75906,2660.3,2659.7,7.51949]
[1739228646891,3.75906,2660.3,2659.7,3.75971]
[1739228647190,3.75906,2660.3,2659.7,3.7597]
[1739228647407,5.35,2661.1,2659.9,4.56233]
[1739228647553,3.75824,2660.9,2660.2,3.75899]
[1739228647755,3.75837,2660.8,2660.1,3.75917]
[1739228647988,3.75824,2660.9,2660.1,3.75917]
[1739228648194,9.88587,2661.5,2660.7,3.7584]
[1739228648390,6.1285,2661.5,2660.9,3.75812]
[1739228648597,3.0,2661.4,2661.0,3.75784]
[1739228648794,3.75688,2661.8,2661.3,3.75747]
[1739228648995,3.75709,2661.7,2660.9,3.75805]
[1739228649304,3.0,2661.6,2661.1,3.75775]
[1739228649530,9.10659,2662.0,2661.4,3.75741]
[1739228649797,0.7785,2662.5,2661.3,3.75756]
[1739228649954,0.7785,2662.5,2661.9,3.75664]
[1739228650355,3.7562,2662.3,2661.8,0.8324]
[1739228651224,3.7562,2662.3,2661.5,4.58966]
[1739228651225,3.75645,2662.1,2661.5,4.58966]
[1739228651493,3.7562,2662.3,2661.5,4.58966]
[1739228651696,3.75643,2662.1,2661.5,4.58966]
[1739228651916,3.7562,2662.3,2661.5,4.58966]
[1739228652096,0.55,2662.4,2661.5,0.8324]
[1739228652302,0.7785,2662.5,2661.2,0.8324]
[1739228652486,3.75627,2662.3,2661.6,3.75707]
[1739228652816,7.51251,2662.3,2661.6,3.75707]
[1739228653186,3.7785,2662.5,2661.4,3.75739]
[1739228653187,3.75667,2662.0,2661.4,3.75739]
[1739228653509,3.75633,2662.2,2661.5,3.75723]
[1739228653670,3.75633,2662.2,2661.5,3.75717]
[1739228654319,3.75633,2662.2,2661.3,0.03756747]
[1739228654320,3.75631,2662.2,2661.3,3.75756]
[1739228654519,3.0,2662.3,2661.6,3.75713]
[1739228654813,3.75579,2662.6,2661.9,3.75658]
[1739228655390,1.75827599,2662.7,2661.9,0.03756318]
[1739228655605,4.75827599,2662.7,2662.1,3.75632]
[1739228655984,4.75827599,2662.7,2662.1,7.51264]
[1739228656193,4.75827599,2662.7,2662.1,3.75632]
[1739228656518,8.51390599,2662.7,2662.1,3.75632]
[1739228656811,4.75827599,2662.7,2662.2,3.75628]
[1739228657117,8.51396599,2662.7,2662.1,3.75632]
[1739228657410,4.75827599,2662.7,2662.1,7.51264]
[1739228657616,4.75827599,2662.7,2662.1,3.75632]
[1739228658314,4.75827599,2662.7,2662.3,3.75612]
[1739228658730,1.75827599,2662.7,2662.2,0.8294]
[1739228658880,1.75827599,2662.7,2662.4,3.75593]
[1739228659217,1.75827599,2662.7,2662.4,3.7559]
[1739228659580,1.75827599,2662.7,2662.2,0.8294]
[1739228659923,1.75827599,2662.7,2662.3,3.75607]
[1739228660074,3.75582,2662.6,2662.0,3.75649]
[1739228660269,5.51392599,2662.7,2662.1,3.75632]
[1739228660776,5.51392599,2662.7,2662.0,3.75649]
[1739228660977,1.75827599,2662.7,2662.4,3.75596]
[1739228661210,1.75827599,2662.7,2662.4,3.75592]
[1739228661916,1.75827599,2662.7,2662.2,0.8294]
[1739228662210,1.75827599,2662.7,2662.4,3.756]
[1739228662524,1.75827599,2662.7,2662.2,4.58564]
[1739228662672,1.75827599,2662.7,2662.6,3.75572]
[1739228663140,3.0,2663.4,2662.6,3.75572]
[1739228663141,6.75462,2663.4,2662.8,3.75539]
[1739228663723,0.7734,2663.5,2662.5,3.75575]
[1739228663724,3.75476,2663.3,2662.5,3.75575]
[1739228664020,3.75489,2663.2,2662.6,3.7556]
[1739228664175,3.75476,2663.3,2662.6,3.7556]
[1739228664381,3.75476,2663.3,2662.7,0.7662]
[1739228664615,3.75504,2663.1,2662.4,3.75596]
[1739228664919,3.75509,2663.1,2662.5,3.75578]
[1739228665081,3.75516,2663.0,2662.5,3.75578]
[1739228665481,4.52873,2662.9,2662.3,3.75607]
[1739228666579,0.7734,2662.9,2662.2,5.39]
[1739228666795,3.75475,2663.3,2662.7,4.5217]
[1739228666998,3.75503,2663.1,2662.6,3.75569]
[1739228667198,0.7734,2663.0,2662.5,3.75575]
[1739228667437,4.52857,2663.0,2662.5,3.75575]